Cogmind - Beta 11.1 *** ADVENTURER MODE // 2022.10.18 @ 00:02:07 Player: intrepid Result: Destroyed by G-34 Mercenary with Small Laser Performance ------------- Evolutions (0) 0 Regions Visited (2) 400 Robots Destroyed (7) 35 Value Destroyed (235) 235 Prototype IDs (0) 0 Alien Tech Used (0) 0 Bonus (0) 0 TOTAL SCORE: 670 Bonus ------- None Cogmind --------- Core Integrity 0/250 Matter 252/300 Energy 85/100 System Corruption 0% Temperature Cool (6) Movement Walking (400) Ox4 Location -10/Mines Parts ------- > --- POWER (1) -------- (None) > --- PROPULSION (2) --- Aluminum Leg Aluminum Leg > --- UTILITY (2) ------ Huge Storage Unit Signal Interpreter > --- WEAPON (2) ------- Assault Rifle > --- INVENTORY (25) --- Light Ion Engine Improved Heat Sink Small Storage Unit Medium Matter Pod (58) Peak State ------------ > --- POWER ------------ Light Ion Engine > --- PROPULSION ------- Wheel Compact Wheel > --- UTILITY ---------- Huge Storage Unit Signal Interpreter > --- WEAPON ----------- EM Pulse Gun Medium Laser > --- INVENTORY -------- Light Ion Engine Aluminum Leg Aluminum Leg Improved Heat Sink Small Storage Unit Medium Matter Pod Assault Rifle Light Assault Rifle [Rating: 8] Favorites ----------- Power Light Ion Engine Engine Light Ion Engine Propulsion Compact Wheel Leg Aluminum Leg Wheel Compact Wheel Utility Huge Storage Unit Storage Huge Storage Unit Processor Signal Interpreter Weapon Medium Laser Energy Gun Medium Laser Ballistic Gun Light Assault Rifle Build | -11 -10 -10 ------- Run | Scr Mat Min Slots Evolved . | . . . Power . | . . . Propulsion . | . . . Utility . | . . . Weapon . | . . . Parts Attached 13 | 6 2 5 Power 1 | 1 . . Engine 1 | 1 . . Core . | . . . Reactor . | . . . Propulsion 4 | 2 . 2 Treads . | . . . Leg 2 | . . 2 Wheel 2 | 2 . . Hover . | . . . Flight . | . . . Utility 3 | 1 2 . Device . | . . . Storage 2 | 1 1 . Processor 1 | . 1 . Hackware . | . . . Protection . | . . . Artifact . | . . . Weapon 5 | 2 . 3 Energy Gun 3 | 2 . 1 Energy Cannon . | . . . Ballistic Gun 2 | . . 2 Ballistic Cannon . | . . . Launcher . | . . . Special Weapon . | . . . Impact Weapon . | . . . Slashing Weapon . | . . . Piercing Weapon . | . . . Special Melee Weapon . | . . . Unidentified Prototypes . | . . . Parts Lost 7 | . 1 6 Power 1 | . . 1 Propulsion 2 | . . 2 Utility . | . . . Weapon 4 | . 1 3 Highest Loss Streak 4 | . 1 4 To Critical Strikes . | . . . Average Slot Usage (%) 80 | . 81 78 Engine 13 | . 14 11 Wheel 22 | . 28 11 Storage 14 | . 14 14 Processor 6 | . 2 14 Energy Gun 18 | . 21 12 Ballistic Gun 4 | . . 13 Naked Turns . | . . . Heaviest Build 87 | 12 87 86 Greatest Support 26 | 26 26 20 Greatest Overweight (x) 5 | . 3 5 Average Overweight (x) 2 | . 2 4 Largest Inventory Capacity 25 | 8 25 25 Average Capacity 21 | 6 22 25 Most Carried 9 | 4 9 8 Average Carried 5 | 1 5 6 Final Capacity 25 | 8 25 25 Final Carried 9 | 4 9 4 Class Distribution -------------------- 100% | Mutant Dominant Class ---------------- Mutant | -10/Materials Mutant | -10/Mines Resources | -11 -10 -10 ----------- Run | Scr Mat Min Matter Collected 328 | 204 61 63 Remotely . | . . . Salvage Created 275 | . 117 158 Parts 13 | . 6 7 Haulers Intercepted . | . . . Recyclers Shooed . | . . . Parts Field Recycled . | . . . Retrieved Matter . | . . . Parts Self-Destructed . | . . . Prevented . | . . . Kills | -11 -10 -10 ------- Run | Scr Mat Min Combat Hostiles Destroyed 6 | . 2 4 Guns 5 | . 1 4 Classes Destroyed 3 | . 2 1 Watcher 1 | . 1 . Swarmer 1 | . . 1 Grunt 5 | . 2 3 Best Kill Streak 2 | . 1 2 Combat Bots Only 2 | . 1 2 Max Kills in Single Turn 1 | . 1 1 Gunslinging . | . . . Exploded . | . . . Melee . | . . . Uniques/NPCs Destroyed . | . . . Combat | -11 -10 -10 -------- Run | Scr Mat Min Damage Taken 723 | . 131 592 Core 250 | . 13 237 Absorbed by Shields . | . . . Core Remaining (%) 100 | 100 . . Volleys Fired 36 | . 16 20 Largest 2 | . 2 2 Hottest 90 | . 90 90 Shots Fired 57 | . 26 31 Gun 57 | . 26 31 Cannon . | . . . Launcher . | . . . Special . | . . . Kinetic 15 | . . 15 Thermal 27 | . 16 11 Explosive . | . . . Electromagnetic 15 | . 10 5 Robot Hit Streak 16 | . 6 16 Robot Miss Streak 2 | . 2 1 Penetration Max . | . . . Secondary Targets 3 | . 1 2 Max Gunslinging Chain 1 | . 1 1 Shots Hit Robots 48 | . 18 30 Core Hits 15 | . 4 11 Critical Kills . | . . . Critical Parts Destroyed . | . . . Critical Strikes 5 | . 2 3 Burn 5 | . 2 3 Melee Attacks . | . . . Impact . | . . . Slashing . | . . . Piercing . | . . . Sneak Attacks . | . . . Combat Hostiles . | . . . Follow-up Attacks . | . . . Damage Inflicted 609 | . 229 380 Guns 563 | . 229 334 Cannons . | . . . Explosions 42 | . . 42 Melee . | . . . Ramming 4 | . . 4 Kinetic 132 | . . 132 Thermal 318 | . 139 179 Explosive . | . . . Electromagnetic 155 | . 90 65 Impact . | . . . Slashing . | . . . Piercing . | . . . Highest Corruption . | . . . Average Corruption . | . . . Corruption Purged . | . . . Corruption Blocked . | . . . Overload Shots . | . . . Overflow Damage . | . . . Projectiles . | . . . Explosions . | . . . Melee . | . . . Knockbacks . | . . . Impact . | . . . Kinetic . | . . . Secondary . | . . . Self-Inflicted Damage 2 | . . 2 Shots . | . . . Rammed 1 | . . 1 Targets Rammed 1 | . . 1 Kicked . | . . . Crushed . | . . . Highest Temperature 388 | . 388 257 Average Temperature 154 | . 193 113 Received Heat Transfer 468 | . 93 375 Effects 1 | . 1 . Shutdowns 1 | . 1 . Siege Activations . | . . . Robots Corrupted . | . . . Combat Hostiles . | . . . Parts Fried . | . . . Impact Corruptions . | . . . Robots Melted 1 | . 1 . Combat Hostiles 1 | . 1 . Parts Melted 1 | . . 1 Heat Transferred 1234 | . 555 679 Parts Sabotaged . | . . . Parts Stolen . | . . . Parts Stripped . | . . . Power Chain Reactions 1 | . . 1 Missiles Intercepted . | . . . Alert | -11 -10 -10 ------- Run | Scr Mat Min Peak Influence 70 | . 65 70 Initial 21 | . . 21 Average 30 | . 24 55 Maximum Alert Level . | . . . Low Security (%) 100 | 100 100 100 Level 1 . | . . . Level 2 . | . . . Level 3 . | . . . Level 4 . | . . . Level 5 . | . . . High Security . | . . . Max Security . | . . . Squads Dispatched . | . . . Investigation . | . . . Extermination . | . . . Reinforcement . | . . . Assault . | . . . Garrison . | . . . Intercept . | . . . Searches Triggered . | . . . Construction Impeded . | . . . Haulers Reinforced . | . . . Active Scanning Responses . | . . . Cargo Convoy Interrupts . | . . . Stealth | -11 -10 -10 --------- Run | Scr Mat Min Distress Signals 1 | . 1 . Communications Jammed . | . . . Distress Signals . | . . . Times Spotted 13 | . 4 9 Peak Tracking Total 7 | . 3 7 Tactical Retreats . | . . . Traps | -11 -10 -10 ------- Run | Scr Mat Min Traps Triggered . | . . . Indirectly . | . . . Trap Hack Attempts . | . . . Triggered . | . . . Disarmed . | . . . Reprogrammed . | . . . Reused . | . . . Traps Extracted . | . . . Installed . | . . . Triggered . | . . . Machines | -11 -10 -10 ---------- Run | Scr Mat Min Machines Disabled . | . . . Max in Single Turn . | . . . Machines Sabotaged . | . . . Garrisons Compromised . | . . . Overloaded Fab Kills . | . . . Hacking | -11 -10 -10 --------- Run | Scr Mat Min Machines Accessed 3 | . 3 . Terminals 1 | . 1 . Fabricators . | . . . Repair Stations . | . . . Recycling Units 2 | . 2 . Scanalyzers . | . . . Garrison Access . | . . . Total Hacks 4 | . 4 . Successful 4 | . 4 . Failed . | . . . Catastrophic . | . . . Database Lockouts . | . . . Manual 1 | . 1 . Terminals 1 | . 1 . Fabricators . | . . . Repair Stations . | . . . Recycling Units 3 | . 3 . Scanalyzers . | . . . Garrison Access . | . . . Terminal Hacks 1 | . 1 . Record 1 | . 1 . Fabricator Hacks . | . . . Repair Station Hacks . | . . . Recycling Unit Hacks 3 | . 3 . Report Inventory 2 | . 2 . Retrieve Matter 1 | . 1 . Scanalyzer . | . . . Garrison Access Hacks . | . . . Unauthorized Hacks . | . . . Terminals . | . . . Fabricators . | . . . Repair Stations . | . . . Recycling Units . | . . . Scanalyzers . | . . . Garrison Access . | . . . Data Cores Recovered . | . . . Used . | . . . Hacking Detections . | . . . Full Trace Events . | . . . Feedback Events . | . . . Feedback Blocked . | . . . Robot Schematics Acquired . | . . . Robots Built . | . . . Authchips . | . . . Time . | . . . Total Robot Build Rating . | . . . Part Schematics Acquired . | . . . Parts Built . | . . . Authchips . | . . . Time . | . . . Total Part Build Rating . | . . . Parts Repaired . | . . . Time . | . . . Parts Recycled . | . . . Recycled Matter . | . . . Retrieved Matter . | . . . Retrieved Components . | . . . Parts Scanalyzed . | . . . Part Schematics Acquired . | . . . Parts Damaged . | . . . Bothacking | -11 -10 -10 ------------ Run | Scr Mat Min Used RIF Installer . | . . . Robots Hacked . | . . . Non-combat . | . . . Combat . | . . . Robot Hacks Applied . | . . . Relay Couplers Released . | . . . Fabnet Peak Effective % . | . . . Robots Rewired . | . . . Allies Hacked . | . . . Hacks Repelled . | . . . Allies | -11 -10 -10 -------- Run | Scr Mat Min Total Allies . | . . . Largest Group . | . . . Highest-Rated Group . | . . . Highest-Rated Ally . | . . . Total Orders . | . . . Ally Attacks . | . . . Total Damage . | . . . Kills . | . . . Allies Corrupted . | . . . Allies Melted . | . . . Intel | -11 -10 -10 ------- Run | Scr Mat Min Robot Analysis Total . | . . . Derelict Logs Recovered . | . . . Drone Launches . | . . . Drone Recoveries . | . . . Exploration | -11 -10 -10 ------------- Run | Scr Mat Min Turns Passed 659 | 77 392 190 Spaces Moved 406 | 52 278 76 Core 13 | 13 . . Treads . | . . . Legs 1 | . . 1 Wheels 392 | 39 278 75 Hover . | . . . Flight . | . . . Fastest Speed 50 | 50 90 175 Average Speed 128 | 83 123 177 Slowest Speed 400 | 100 135 400 Overloaded Moves . | . . . Propulsion Burnouts . | . . . Robots Hopped . | . . . Cave-ins Triggered . | . . . Exploration Rate (%) 19 | 4 39 14 Regions Visited 2 Branch Regions 1 Pre-discovered Areas . | . . . Known Exits Taken 1 | . 1 . Unknown Exits Taken 1 | 1 . . Scrap Searched . | . . . Spaces Dug . | . . . Terrain Destroyed 4 | . . 4 Melee . | . . . Projectile . | . . . AOE 4 | . . 4 Terrain Rammed . | . . . Walls Destroyed . | . . . Machines Disabled . | . . . Actions | -11 -10 -10 --------- Run | Scr Mat Min Total 489 | 85 302 102 Wait 18 | 18 . . Move 404 | 51 277 76 Hop . | . . . Pick Up 16 | 10 6 . Fast Attach . | . . . Attach 13 | 6 2 5 Detach 1 | . 1 . Swap . | . . . Drop . | . . . Fire 36 | . 16 20 Melee . | . . . Ram 1 | . . 1 Kick . | . . . Crush . | . . . Escape Stasis . | . . . Rewire . | . . . Trap . | . . . Miscellaneous . | . . . Route ------- -11/Scrapyard -10/Materials (discovered 2 exits: *Mat / *Min) -10/Mines (discovered 1 exit: *Mat) History --------- Turn | Location | Event 46 | -11/Scrapyard | Discovered new exit (range 16) 78 | -11/Scrapyard | Entered Materials 186 | -10/Materials | Discovered new exit (range 16) 300 | -10/Materials | Build established: Mutant 397 | -10/Materials | Discovered new exit (range 16) 460 | -10/Materials | Identified exit to Mines 470 | -10/Materials | Entered Mines 542 | -10/Mines | Discovered new exit (range 7) 551 | -10/Mines | Identified exit to Materials 633 | -10/Mines | Core integrity fell below 50% 644 | -10/Mines | Core integrity fell below 20% 660 | -10/Mines | Destroyed by G-34 Mercenary with Small Laser Last Messages --------------- U-05 Engineer lays Concrete. K-01 Serf collects debris. Acquired 43 matter. EXIT=FOUND EXIT=IDENTIFIED: MATERIALS Lgt. Ion Engine destroyed. Slammed into G-47 Trooper. Destabilizing: System interference. Signal Interpreter temporarily disabled. K-01 Serf destroyed. S-10 Pest suffers critical hit (Burn). Com. Wheel destroyed. G-47 Trooper suffers critical hit (Burn). S-10 Pest destroyed. Switching to secondary target: G-47 Trooper. Med. Laser destroyed. Lgt. Assault Rifle destroyed. G-47 Trooper destroyed. K-01 Serf collects debris. R-06 Scavenger collects Lgt. Nuclear Core. Map ----- +----------------------------------------------------+ | ????????????????????????????????????????????????? | | ????????????????????????????????????????????????? | | ????????????????????????????????????????????????? | | ????????????????????????????????????????????????? | | ????????????????????????????????????????????????? | | ???????????????????????????????????###########??? | | ???????????????????????????????????# #??? | | ???????????????????????????????????# #??? | | ???????????????????????????????????# """ #??? | | ????????????????????????????????#### < """ #??? | | ????????????????????????????????# """ #??? | | ????????????????????????????????# ## #??? | | ??????????? ????????????????????# ## #??? | | ??????????? ???????????????????# ############??? | | ??????????? #?????????????????# #?????????????? | | ???????????# ##?##?????######?# #?????????????? | | ????????????? ## ?????# #?# #?????????????? | | ??????????????# ?????# ### #?????????????? | | ???????????????# ????# # # #?????????????? | | ???????????????# ????# ### #?????????????? | | ???????????????# ##### = #?????????????? | | ???????????????# [ #####?????????????? | | ??????????????# *##????????????????? | | ?????????????# ### ### #?????????????????? | | ?????????????# ??????# ########?????????????????? | | ?????????????????????# kg@#?????????????????????? | | ?????????????????????####g#?????????????????????? | | ????????????????????????#g#?????????????????????? | | ????????????????????????#s#?????????????????????? | | ????????????????????????#%s#????????????????????? | | ???????????????????????? = #???????????????????? | | ???????????????????????? ??????????????????? | | ??????????????????????? ?????????????????? | | ??????????????????????? ????????????????? | | ?????????????????????? ???????????????? | | ?????????????????????? #### #??????????????? | | ????????????????????? #???? #??????????????? | | ????????????????????? ????? ??????????????? | | ????????????????????# ?????? ?????????????? | | ????????????????????## ?????? ????????????? | | ?????????????????????## ??????? ?????????????? | | ??????????????????????# ???????? ???????????????? | | ??????????????????????#?????????????????????????? | | ????????????????????????????????????????????????? | | ????????????????????????????????????????????????? | | ????????????????????????????????????????????????? | | ????????????????????????????????????????????????? | | ????????????????????????????????????????????????? | | ????????????????????????????????????????????????? | | ????????????????????????????????????????????????? | +----------------------------------------------------+ Best States ------------- Heat Dissipation 25 Energy Generation 10 Energy Capacity 125 Matter Stores 300 Matter Capacity 300 Sight Range 16 Terrain Scan Density 10 Resistance: KI 20 Resistance: TH 20 Resistance: EX 20 Resistance: EM 20 Resistance: I 20 Resistance: S 20 Resistance: P 20 Evasion (%) 42 Offensive Hacking 10 Item Schematics ----------------- None Robot Schematics ------------------ None Fabricated ------------ Nothing Alien Tech Used ----------------- None Achievements -------------- It's Just You Challenges ------------ None Game ------ Seed GhostAntimissileBlaster Manual? 0 Play Time 00:15:34 Cumulative 1.5 hours Start 2022.10.14 @ 02:06:11 End 2022.10.18 @ 00:02:07 Sessions 2 Manual Loads 0 Difficulty Adventurer Special Mode None Game No. 2 Rogue 0 Adventurer 2 Explorer 0 Win Type - Total 0 Types 0/0/0/0/0/0/0/0/0 Lore% 0 Gallery% 2 Achievement% 1 Wizard Run 0 Options --------- ASCII 0 Keyboard 0 Movement Mouse Keybinds 0 Fullscreen 1 Font 18/SmallcapsGlow Map View 76x50 Tactical HUD 0 Map Filters NONE Filters NONE Steam 1 RUN: e163b28e-eadb-4984-babc-4ba24a172d50